Cogmind - Beta 14 @@@ ROGUE MODE // 2025.05.04 @ 15:38:43 Player: shockman27 Result: Destroyed by X-82 Rainmaker with Heavy Flak Cannon Performance ------------- Evolutions (7) 3500 Regions Visited (21) 4200 Robots Destroyed (126) 630 Value Destroyed (3871) 3871 Prototype IDs (53) 1060 Alien Tech Used (0) 0 Bonus (3070) 3070 TOTAL SCORE: 16331 Bonus ------- High Alert Combat Kills 72 Follower Combat Kills 234 Entered Garrisons 600 Used RIF Installer 1000 Entered DSFs 1000 Aligned with FarCom 300 Friendly Fire -136 Cogmind --------- Core Integrity 0/1300 Matter 56/300 Energy 38/100 System Corruption 0% Temperature Cool (6) Movement Walking (120) Location -3/Garrison Parts ------- > --- POWER (2) -------- (None) > --- PROPULSION (6) --- Centrium Leg Centrium Leg Centrium Leg > --- UTILITY (11) ----- Enhanced Optical Array Graphene Brace Hacking Suite Improved Corruption Screen > --- WEAPON (2) ------- (None) > --- INVENTORY (5) ---- ECM Suite Improved Reaction Control System Relay Coupler [NC] (19) Improved Remote Datajack Peak State ------------ > --- POWER ------------ Micro Fission Core Micro Fission Core > --- PROPULSION ------- Nuclear Pulse Array Nuclear Pulse Array Impulse Thruster Q-thruster > --- UTILITY ---------- Large Storage Unit Structural Scanner Enhanced Optical Array Graphene Brace Hacking Suite Hacking Suite Hacking Suite Improved Hacking Suite Advanced Hacking Suite System Shield Improved Corruption Screen > --- WEAPON ----------- Improved Remote Datajack Power Sword > --- INVENTORY -------- Micro Antimatter Reactor Cooled Nuclear Pulse Thruster ECM Suite Improved Reaction Control System Phase Shifter Improved Cloaking Device Graphene Brace Hacking Suite Relay Coupler [NC] Relay Coupler [Grunt] Relay Coupler [Heavy] Improved System Guard Heavy Gauss Cannon Missile Launcher [Rating: 112] Favorites ----------- Power Ion Engine Engine Ion Engine Power Core Micro Fission Core Reactor Light Quantum Reactor Propulsion Light Treads Treads Light Treads Leg Centrium Leg Wheel Wheel Hover Unit Airjet Flight Unit Nuclear Pulse Array Utility Hacking Suite Device Seismic Detector Storage High-capacity Storage Unit Processor Salvage Targeting Computer Hackware Hacking Suite Protection Hardened Medium Armor Plating Weapon Light Cannon Energy Gun Medium Laser Energy Cannon Ion Cannon Ballistic Gun Assault Rifle Ballistic Cannon Light Cannon Launcher Missile Launcher Special Weapon Improved Remote Datajack Impact Weapon Flail Slashing Weapon Chainsword Special Melee Weapon Improved Datajack Build | -11 -10 -10 -10 -9 -8 -8 -7 -7 -6 -6 -6 -6 -5 -5 -5 -5 -5 -4 -4 -3 -3 ------- Run | Yrd Mat Min Exi Min Mat Gar Fac DSF Fac Was Fac Ext Fac Was Fac Gar Fac Fac DSF Res Gar Slots Evolved 14 | . . . . . 4 . 2 . 2 . . . 2 . . . . 2 . 2 . Power 1 | . . . . . . . . . 1 . . . . . . . . . . . . Propulsion 4 | . . . . . 2 . 1 . . . . . 1 . . . . . . . . Utility 9 | . . . . . 2 . 1 . 1 . . . 1 . . . . 2 . 2 . Weapon . | . . . . . . . . . . . . . . . . . . . . . . Parts Attached 221 | 8 44 5 2 1 53 1 7 1 15 3 3 6 7 4 16 . 12 8 4 8 13 Power 20 | 1 5 . . . 3 . . . 1 . . 1 . 1 2 . 1 2 . . 3 Engine 10 | 1 5 . . . 2 . . . . . . 1 . . 1 . . . . . . Core 7 | . . . . . 1 . . . 1 . . . . . 1 . 1 2 . . 1 Reactor 3 | . . . . . . . . . . . . . . 1 . . . . . . 2 Propulsion 53 | 2 12 4 . . 12 . 3 . 2 . . . 1 . 4 . 4 3 . 1 5 Treads 16 | . 6 2 . . 8 . . . . . . . . . . . . . . . . Leg 4 | . . . . . . . . . . . . . . . 1 . . . . . 3 Wheel 10 | 2 6 2 . . . . . . . . . . . . . . . . . . . Hover 8 | . . . . . 4 . 3 . 1 . . . . . . . . . . . . Flight 15 | . . . . . . . . . 1 . . . 1 . 3 . 4 3 . 1 2 Utility 70 | 3 8 . 1 . 12 . 3 1 9 3 2 4 4 1 8 . 1 3 1 4 2 Device 38 | 2 4 . 1 . 3 . 1 1 7 3 2 3 2 . 3 . . 1 1 3 1 Storage 7 | 1 3 . . . 1 . . . . . . . 1 . 1 . . . . . . Processor 7 | . 1 . . . 1 . . . . . . . 1 1 1 . . 1 . 1 . Hackware 13 | . . . . . 2 . 2 . 2 . . 1 . . 3 . 1 1 . . 1 Protection 5 | . . . . . 5 . . . . . . . . . . . . . . . . Artifact . | . . . . . . . . . . . . . . . . . . . . . . Weapon 78 | 2 19 1 1 1 26 1 1 . 3 . 1 1 2 2 2 . 6 . 3 3 3 Energy Gun 8 | 1 2 . . . 3 . . . . . . . 1 . . . . . . . 1 Energy Cannon 5 | . . . . . 4 . . . . . . . . . . . . . . . 1 Ballistic Gun 11 | 1 6 . . . 3 . . . 1 . . . . . . . . . . . . Ballistic Cannon 17 | . 5 . . 1 10 . . . . . . . . . . . . . 1 . . Launcher 9 | . 2 1 . . 1 1 . . . . . 1 . 2 . . . . . 1 . Special Weapon 10 | . 2 . . . . . . . . . 1 . . . 1 . 3 . 1 1 1 Impact Weapon 4 | . 2 . . . 2 . . . . . . . . . . . . . . . . Slashing Weapon 11 | . . . . . 3 . . . 2 . . . 1 . . . 3 . 1 1 . Piercing Weapon . | . . . . . . . . . . . . . . . . . . . . . . Special Melee Weapon 3 | . . . 1 . . . 1 . . . . . . . 1 . . . . . . Unidentified Prototypes 4 | . . . . . . . . . . 1 . . . 1 2 . . . . . . Parts Lost 46 | . 3 1 . . 5 1 . . . . 4 8 . 1 2 1 1 . . . 19 Power 6 | . . . . . . . . . . . . 3 . . . . . . . . 3 Propulsion 17 | . 2 . . . 2 . . . . . 1 4 . . . 1 1 . . . 6 Utility 15 | . . 1 . . 2 1 . . . . 2 . . 1 1 . . . . . 7 Weapon 8 | . 1 . . . 1 . . . . . 1 1 . . 1 . . . . . 3 Highest Loss Streak 14 | . 2 1 . . 2 1 . . . . 4 8 . 1 2 1 1 . . . 14 To Critical Strikes . | . . . . . . . . . . . . . . . . . . . . . . Average Slot Usage (%) 93 | . 99 95 96 100 99 96 98 100 99 100 98 83 39 61 78 78 74 78 87 88 74 Engine 8 | . 13 14 14 14 4 9 7 7 6 6 6 5 . 7 10 5 5 . . . . Core 2 | . . . . . 4 . . . 6 6 6 5 . . . 5 5 9 10 9 4 Treads 15 | . 15 13 28 28 35 . . . . . . . . . . . . . . . . Wheel 3 | . 12 14 . . . . . . . . . . . . . . . . . . . Hover 5 | . . . . . . 36 36 38 32 33 32 24 . . . . . . . . . Flight 2 | . . . . . . . . . . . . . 3 5 15 18 15 15 21 19 18 Device 8 | . 14 9 14 14 7 . 1 7 10 6 5 6 11 6 3 . . . 5 9 5 Storage 9 | . 14 14 14 14 9 9 7 7 6 6 6 6 . . 1 5 5 5 5 4 3 Processor 1 | . . . . . 1 9 7 7 1 . . . . 5 1 5 3 5 5 7 9 Hackware 10 | . . . . . 4 5 15 15 20 26 25 25 23 23 31 29 30 35 31 28 22 Protection 3 | . . . . . 13 9 5 . . . . . . . . . . . . . . Energy Gun 1 | . 3 . . . . . . . . . . . . . . . . . . . . Energy Cannon 1 | . . . . . 5 6 . . . . . . . . . . . . . . . Ballistic Cannon 7 | . 19 9 . 14 7 . . . . . . . . . . . . . 1 . . Impact Weapon 3 | . . 14 14 14 . . . . . . . . . . . . . . . . . Slashing Weapon 2 | . . . . . 2 9 7 7 5 6 5 . . 5 5 5 3 5 5 4 3 Special Melee Weapon 1 | . . . 10 . . . 7 7 6 6 4 . . . 4 . . . . . . Peak Build Rating 112 | 7 10 10 12 12 35 34 40 41 49 52 53 43 49 57 87 87 81 95 103 112 112 Average Rating 31 | 6 8 9 11 11 23 32 38 39 45 49 47 39 32 48 62 78 72 84 99 109 87 On Entrance 45 | . 7 10 9 12 12 34 30 38 41 49 50 36 19 49 49 87 76 74 95 103 112 Naked Turns . | . . . . . . . . . . . . . . . . . . . . . . Heaviest Build 78 | 13 53 51 50 52 78 26 21 19 28 25 28 28 12 15 34 34 31 34 38 40 40 Greatest Support 90 | 26 40 40 40 40 80 32 40 40 40 40 40 32 13 13 39 39 39 39 39 41 90 Greatest Overweight (x) 6 | . 2 2 1 1 1 . . 1 . . . 6 . 1 1 . 1 . . . 6 Average Overweight (x) . | . 1 1 1 1 . . . . . . . . . . . . . . . . . Largest Inventory Capacity 20 | 8 20 20 20 20 20 10 10 10 10 10 10 10 8 5 15 15 15 15 15 15 15 Average Capacity 16 | 7 18 20 20 20 19 10 10 10 10 10 10 9 5 5 8 15 15 15 15 15 13 Most Carried 20 | 8 20 20 20 20 20 10 10 10 10 10 10 9 5 5 15 15 15 13 15 15 15 Average Carried 15 | 5 17 19 19 19 19 10 9 10 9 9 10 7 3 4 6 14 13 10 12 14 11 Final Capacity 20 | 8 20 20 20 20 10 10 10 10 10 10 10 5 5 5 15 15 15 15 15 15 5 Final Carried 20 | 8 20 20 20 20 10 10 10 10 10 10 10 5 3 5 14 15 12 12 15 15 4 Class Distribution -------------------- 48% | Mutant 21% | Hacker-Mutant 17% | Scavenger-Mutant 4% | Wizard-Sprinter 4% | Hacker-Sprinter 3% | Wizard-Mutant Dominant Class ---------------- Mutant | -10/Materials Mutant | -10/Mines Mutant | -10/Exiles Mutant | -9/Mines Scavenger-Mutant | -8/Materials Mutant | -8/Garrison Hacker-Mutant | -7/Factory Hacker-Mutant | -7/DSF Hacker-Mutant | -6/Factory Hacker-Mutant | -6/Waste Hacker-Mutant | -6/Factory Hacker-Mutant | -6/Extension Hacker-Mutant | -5/Factory Hacker-Mutant | -5/Waste Wizard-Mutant | -5/Factory Hacker-Sprinter | -5/Garrison Hacker-Sprinter | -5/Factory Wizard-Sprinter | -4/Factory Wizard-Sprinter | -4/DSF Wizard-Sprinter | -3/Research Hacker-Sprinter | -3/Garrison Resources | -11 -10 -10 -10 -9 -8 -8 -7 -7 -6 -6 -6 -6 -5 -5 -5 -5 -5 -4 -4 -3 -3 ----------- Run | Yrd Mat Min Exi Min Mat Gar Fac DSF Fac Was Fac Ext Fac Was Fac Gar Fac Fac DSF Res Gar Matter Collected 3704 | 304 773 54 . 150 1066 57 205 . . 202 25 6 . 279 140 . 43 86 3 181 130 Remotely . | . . . . . . . . . . . . . . . . . . . . . . Salvage Created 3880 | 104 852 108 . 25 1396 200 153 . 13 . 49 . . 125 462 . 43 . 3 208 139 Parts 238 | 13 52 8 . 5 73 12 9 . 3 . 3 . . 1 30 . 3 . . 16 10 Haulers Intercepted 10 | . 2 . . . 4 . 1 . . . . . . . 2 . . . . 1 . Recyclers Shooed 3 | 1 1 . . . 1 . . . . . . . . . . . . . . . . Parts Field Recycled . | . . . . . . . . . . . . . . . . . . . . . . Retrieved Matter . | . . . . . . . . . . . . . . . . . . . . . . Parts Self-Destructed . | . . . . . . . . . . . . . . . . . . . . . . Prevented . | . . . . . . . . . . . . . . . . . . . . . . Kills | -11 -10 -10 -10 -9 -8 -8 -7 -7 -6 -6 -6 -6 -5 -5 -5 -5 -5 -4 -4 -3 -3 ------- Run | Yrd Mat Min Exi Min Mat Gar Fac DSF Fac Was Fac Ext Fac Was Fac Gar Fac Fac DSF Res Gar Combat Hostiles Destroyed 77 | . 20 6 . . 30 9 . . . . 1 . . 1 2 . . . 1 4 3 Melee 8 | . . 1 . . 1 1 . . . . 1 . . . 2 . . . . . 2 Guns 8 | . 8 . . . . . . . . . . . . . . . . . . . . Cannons 34 | . 6 1 . . 25 . . . . . . . . . . . . . 1 . 1 AOE 26 | . 6 4 . . 3 8 . . . . . . . 1 . . . . . 4 . Classes Destroyed 16 | 2 7 1 . . 3 . . . . . 1 . . 1 . . . . . . 1 Worker 12 | . 2 1 . . 2 . 1 . . . . . . . 3 . . . . 3 . Builder 4 | . 2 1 . . . . 1 . . . . . . . . . . . . . . Tunneler 7 | 2 . . . 2 1 . . . . . . . . . . . . . . 2 . Hauler 10 | . 2 . . . 4 . 1 . . . . . . . 2 . . . . 1 . Recycler 5 | 1 1 . . . 2 . 1 . . . . . . . . . . . . . . Operator 7 | . 1 . . . 3 . . . 1 . . . . . 1 . 1 . . . . Watcher 8 | . 3 . . . 1 . . . . . . . . . 2 . 1 . . . 1 Swarmer 20 | . 6 . . . 5 4 . . . . . . . . . . . . . 4 1 Cutter 1 | . . . . . . . . . . . . . . . . . . . . . 1 Grunt 31 | . 14 1 . . 15 1 . . . . . . . . . . . . . . . Brawler 3 | . . . . . 1 2 . . . . . . . . . . . . . . . Sentry 7 | . . . . . 5 2 . . . . . . . . . . . . . . . Specialist 5 | . . . . . 4 . . . . . . . . . . . . . 1 . . Programmer 4 | . . . . . . . . . . . 1 . . . 2 . . . . . 1 Compactor 1 | . . . . . . . . . . . . . . 1 . . . . . . . Assembled 5 | . . 5 . . . . . . . . . . . . . . . . . . . Wasp 1 | . . . . . . . . . . . . . . 1 . . . . . . . Best Kill Streak 5 | 2 5 5 . 1 5 4 1 . 1 . 1 . . 1 2 . 1 . 1 4 2 Combat Bots Only 5 | . 4 5 . . 4 4 . . . . 1 . . 1 2 . . . 1 4 2 Max Kills in Single Turn 3 | 1 2 2 . 1 2 3 1 . 1 . 1 . . 1 1 . 1 . 1 2 1 Gunslinging . | . . . . . . . . . . . . . . . . . . . . . . Exploded 3 | . 2 2 . . 2 3 . . . . . . . 1 . . . . . 2 . Melee 1 | . . 1 . . 1 1 . . . . 1 . . . 1 . . . . . 1 Uniques/NPCs Destroyed . | . . . . . . . . . . . . . . . . . . . . . . Combat | -11 -10 -10 -10 -9 -8 -8 -7 -7 -6 -6 -6 -6 -5 -5 -5 -5 -5 -4 -4 -3 -3 -------- Run | Yrd Mat Min Exi Min Mat Gar Fac DSF Fac Was Fac Ext Fac Was Fac Gar Fac Fac DSF Res Gar Hostile Shots Fired 714 | . 83 17 . . 164 46 . 1 . . 40 87 . . 27 12 4 . 16 15 202 Missed 241 | . 18 2 . . 45 18 . . . . 18 35 . . 13 9 2 . 9 5 67 Damage Taken 7826 | . 720 247 . . 1675 398 . 42 . . 431 853 . 41 310 57 198 . 55 290 2509 Core 2425 | . 164 47 . . 123 108 . . . . 189 436 . 16 40 . . . . 99 1203 Absorbed by Shields 94 | . . . . . . 73 . . . . . . . . . . . . 21 . . Regen/Repaired (Parts) 513 | . 53 . . . . . 69 . 126 . . . . . 19 . 167 79 . . . Core Remaining (%) 70 | 100 . . . 15 . 58 . 100 . . . 26 . . . . 94 . 100 . . Volleys Fired 275 | 8 68 10 . . 119 9 . . 3 . . 3 . 14 . . 4 . 14 10 13 Largest 2 | 2 2 1 . . 2 1 . . 1 . . 1 . 1 . . 1 . 1 1 1 Hottest 120 | 70 100 35 . . 120 60 . . 30 . . 5 . 36 . . 7 . 61 36 113 Shots Fired 446 | 16 128 10 . . 222 9 . . 3 . . 3 . 14 . . 4 . 14 10 13 Gun 105 | 16 76 . . . 9 . . . 3 . . . . . . . . . . . 1 Cannon 271 | . 46 3 . . 211 2 . . . . . . . . . . . . 8 . 1 Launcher 38 | . 4 7 . . 2 7 . . . . . . . 14 . . . . . 4 . Special 32 | . 2 . . . . . . . . . . 3 . . . . 4 . 6 6 11 Kinetic 246 | 8 83 3 . . 141 . . . 3 . . . . . . . . . 8 . . Thermal 132 | 8 41 . . . 79 2 . . . . . . . . . . . . . . 2 Explosive 38 | . 4 7 . . 2 7 . . . . . . . 14 . . . . . 4 . Electromagnetic . | . . . . . . . . . . . . . . . . . . . . . . Robot Hit Streak 19 | 4 14 4 . . 12 9 . . 2 . . 1 . 4 . . 7 . 19 5 9 Robot Miss Streak 5 | 1 5 3 . . 3 1 . . 1 . . 1 . 3 . . . . 1 1 1 Penetration Max . | . . . . . . . . . . . . . . . . . . . . . . Secondary Targets 2 | . 2 . . . . . . . . . . . . . . . . . . . . Max Gunslinging Chain 1 | . 1 . . . . . . . . . . . . . . . . . . . . Shots Hit Robots 378 | 11 78 8 4 3 150 8 8 . 16 3 4 1 . 7 24 . 8 . 13 14 18 Core Hits 172 | 4 40 11 . 1 59 16 3 . 2 . 1 . . 6 10 . 2 . 2 11 4 Critical Kills 1 | . . 1 . . . . . . . . . . . . . . . . . . . Critical Parts Destroyed 1 | . . . . . 1 . . . . . . . . . . . . . . . . Critical Strikes 13 | . . 1 . . 5 1 . . . . 1 . . . 2 . . . . 1 2 Burn 1 | . . . . . 1 . . . . . . . . . . . . . . . . Blast 1 | . . . . . 1 . . . . . . . . . . . . . . . . Smash 2 | . . 1 . . 1 . . . . . . . . . . . . . . . . Sever 9 | . . . . . 2 1 . . . . 1 . . . 2 . . . . 1 2 Melee Attacks 275 | . 4 4 4 5 36 8 15 3 43 7 24 . . . 52 5 19 8 . 21 17 Impact 19 | . 4 4 . 5 6 . . . . . . . . . . . . . . . . Slashing 238 | . . . . . 30 8 12 3 41 4 23 . . . 47 5 19 8 . 21 17 Piercing . | . . . . . . . . . . . . . . . . . . . . . . Sneak Attacks 42 | . 3 2 4 3 6 . 6 . 4 . 1 . . . 7 . . . . 6 . Combat Hostiles . | . . . . . . . . . . . . . . . . . . . . . . Follow-up Attacks . | . . . . . . . . . . . . . . . . . . . . . . Damage Inflicted 11632 | 137 1461 508 . 177 3685 831 362 . 484 . 208 4 . 796 1083 . 197 . 264 1075 360 Guns 908 | 137 645 . . . 73 . . . 24 . . . . . . . . . . . 29 Cannons 3517 | . 434 35 . . 2721 22 . . . . . . . . . . . . 264 . 41 Explosions 2746 | . 223 305 . . 177 706 . . . . . . . 796 . . . . . 539 . Melee 4429 | . 159 168 . 177 714 103 362 . 460 . 180 . . . 1083 . 197 . . 536 290 Ramming 32 | . . . . . . . . . . . 28 4 . . . . . . . . . Kinetic 3033 | 61 754 35 . . 1895 . . . 24 . . . . . . . . . 264 . . Thermal 1392 | 76 325 . . . 899 22 . . . . . . . . . . . . . . 70 Explosive 2746 | . 223 305 . . 177 706 . . . . . . . 796 . . . . . 539 . Electromagnetic . | . . . . . . . . . . . . . . . . . . . . . . Impact 577 | . 159 168 . 177 73 . . . . . . . . . . . . . . . . Slashing 3852 | . . . . . 641 103 362 . 460 . 180 . . . 1083 . 197 . . 536 290 Piercing . | . . . . . . . . . . . . . . . . . . . . . . Highest Corruption 7 | . 1 1 1 1 . 5 . . . . . . . . 6 6 7 . . . . Average Corruption 2 | . 1 1 1 1 . 5 . . . . . . . . 3 6 6 . . . . Corruption Purged . | . . . . . . . . . . . . . . . . . . . . . . Corruption Blocked 4 | . . . . . . . . . . . . . . . . . . . . . 4 Effects 38 | . 2 5 5 9 . 1 . . . . . . . . 2 2 12 . . . . Message Errors 10 | . 1 2 2 2 . . . . . . . . . . . 1 2 . . . . Matter Fused 9 | . 1 . . 3 . 1 . . . . . . . . . . 4 . . . . Heat Flow Errors 6 | . . 1 1 2 . . . . . . . . . . . . 2 . . . . Energy Discharges 2 | . . 1 1 . . . . . . . . . . . . . . . . . . Data Loss (minor) 9 | . . 1 1 1 . . . . . . . . . . 2 1 3 . . . . Alerts 2 | . . . . 1 . . . . . . . . . . . . 1 . . . . Overload Shots . | . . . . . . . . . . . . . . . . . . . . . . Overflow Damage 877 | . 104 49 . 43 203 . 29 . 32 . 34 . . . 147 . 50 . 3 173 10 Projectiles 39 | . 15 . . . 21 . . . . . . . . . . . . . 3 . . Explosions 78 | . 28 9 . . 4 . . . . . . . . . . . . . . 37 . Melee 760 | . 61 40 . 43 178 . 29 . 32 . 34 . . . 147 . 50 . . 136 10 Knockbacks 38 | . 10 2 . 1 22 . . . . . . . . . . . . . 3 . . Impact 4 | . 2 1 . 1 . . . . . . . . . . . . . . . . . Kinetic 30 | . 8 . . . 19 . . . . . . . . . . . . . 3 . . Secondary 4 | . . 1 . . 3 . . . . . . . . . . . . . . . . Self-Inflicted Damage 173 | . . 30 . . . 63 . . . . 13 2 . . . . . . . 65 . Shots 6 | . . 2 . . . 2 . . . . . . . . . . . . . 2 . Rammed 4 | . . . . . . . . . . . 3 1 . . . . . . . . . Targets Rammed 4 | . . . . . . . . . . . 3 1 . . . . . . . . . Kicked . | . . . . . . . . . . . . . . . . . . . . . . Crushed . | . . . . . . . . . . . . . . . . . . . . . . Highest Temperature 382 | 43 269 252 172 201 382 44 . . . . 5 . . . . 2 228 . . . 32 Average Temperature 72 | 18 62 123 96 91 87 16 . . . . 5 . . . . 2 109 . . . 27 Received Heat Transfer 1532 | . 363 49 . . 675 145 . . . . 45 144 . . 9 21 9 . . . 72 Effects 5 | . . . . . 5 . . . . . . . . . . . . . . . . Interference 3 | . . . . . 3 . . . . . . . . . . . . . . . . Matter Decay 2 | . . . . . 2 . . . . . . . . . . . . . . . . Siege Activations . | . . . . . . . . . . . . . . . . . . . . . . Robots Corrupted 6 | . 2 1 . 1 2 . . . . . . . . . . . . . . . . Combat Hostiles 1 | . . . . . 1 . . . . . . . . . . . . . . . . Parts Fried 7 | . 2 . . 3 2 . . . . . . . . . . . . . . . . Impact Corruptions 10 | . 3 2 . 2 3 . . . . . . . . . . . . . . . . Robots Melted . | . . . . . . . . . . . . . . . . . . . . . . Combat Hostiles . | . . . . . . . . . . . . . . . . . . . . . . Parts Melted . | . . . . . . . . . . . . . . . . . . . . . . Heat Transferred 2812 | 222 962 . . . 1517 37 . . . . . . . . . . . . . . 74 Parts Sabotaged . | . . . . . . . . . . . . . . . . . . . . . . Parts Stolen . | . . . . . . . . . . . . . . . . . . . . . . Parts Stripped . | . . . . . . . . . . . . . . . . . . . . . . Power Chain Reactions . | . . . . . . . . . . . . . . . . . . . . . . Alert | -11 -10 -10 -10 -9 -8 -8 -7 -7 -6 -6 -6 -6 -5 -5 -5 -5 -5 -4 -4 -3 -3 ------- Run | Yrd Mat Min Exi Min Mat Gar Fac DSF Fac Was Fac Ext Fac Was Fac Gar Fac Fac DSF Res Gar Peak Influence 607 | 15 214 104 . 10 478 607 361 252 203 5 139 54 36 156 350 461 355 109 113 282 280 Initial 318 | . 9 35 . . 3 290 318 252 132 5 3 49 6 12 109 245 241 93 76 63 211 Average 141 | 8 117 27 . 1 206 403 331 252 104 5 31 47 7 132 216 366 264 97 88 138 215 Maximum Alert Level 2 | . 1 . . . 2 2 1 1 1 . . . . . 1 2 1 . . 1 1 Low Security (%) 72 | 100 90 100 . 100 58 . . . 82 100 100 100 100 100 39 . 13 100 100 77 25 Level 1 20 | . 9 . . . 15 70 100 100 17 . . . . . 60 46 86 . . 22 74 Level 2 7 | . . . . . 26 29 . . . . . . . . . 53 . . . . . Level 3 . | . . . . . . . . . . . . . . . . . . . . . . Level 4 . | . . . . . . . . . . . . . . . . . . . . . . Level 5 . | . . . . . . . . . . . . . . . . . . . . . . High Security . | . . . . . . . . . . . . . . . . . . . . . . Max Security . | . . . . . . . . . . . . . . . . . . . . . . Squads Dispatched 34 | . 5 . . . 11 . . . 3 . 2 1 . . 7 . 3 . . 2 . Investigation 13 | . 4 . . . 2 . . . 2 . 1 . . . 3 . 1 . . . . Extermination 5 | . . . . . . . . . 1 . 1 . . . 2 . . . . 1 . Reinforcement 12 | . 1 . . . 5 . . . . . . 1 . . 2 . 2 . . 1 . Assault . | . . . . . . . . . . . . . . . . . . . . . . Garrison 4 | . . . . . 4 . . . . . . . . . . . . . . . . Intercept . | . . . . . . . . . . . . . . . . . . . . . . Searches Triggered . | . . . . . . . . . . . . . . . . . . . . . . Construction Impeded . | . . . . . . . . . . . . . . . . . . . . . . Haulers Reinforced . | . . . . . . . . . . . . . . . . . . . . . . Active Scanning Responses . | . . . . . . . . . . . . . . . . . . . . . . Cargo Convoy Interrupts . | . . . . . . . . . . . . . . . . . . . . . . Stealth | -11 -10 -10 -10 -9 -8 -8 -7 -7 -6 -6 -6 -6 -5 -5 -5 -5 -5 -4 -4 -3 -3 --------- Run | Yrd Mat Min Exi Min Mat Gar Fac DSF Fac Was Fac Ext Fac Was Fac Gar Fac Fac DSF Res Gar Distress Signals 4 | . 2 . . . 1 . . . . . . . . . . . . . . 1 . Communications Jammed . | . . . . . . . . . . . . . . . . . . . . . . Distress Signals . | . . . . . . . . . . . . . . . . . . . . . . Times Spotted 170 | . 31 7 . . 40 14 1 . 2 . 13 6 2 6 8 7 7 . 2 7 17 Peak Tracking Total 11 | . 5 4 . . 5 8 1 1 1 . 11 6 2 2 5 9 1 . 1 5 11 Tactical Retreats 9 | . . . . . 2 1 . . . . 1 . 1 . 1 1 . . 1 1 . Traps | -11 -10 -10 -10 -9 -8 -8 -7 -7 -6 -6 -6 -6 -5 -5 -5 -5 -5 -4 -4 -3 -3 ------- Run | Yrd Mat Min Exi Min Mat Gar Fac DSF Fac Was Fac Ext Fac Was Fac Gar Fac Fac DSF Res Gar Traps Triggered 20 | . 5 . . . . 3 . 1 2 . 1 . 1 . 1 . 1 2 1 1 1 Indirectly . | . . . . . . . . . . . . . . . . . . . . . . Trap Hack Attempts . | . . . . . . . . . . . . . . . . . . . . . . Triggered . | . . . . . . . . . . . . . . . . . . . . . . Disarmed . | . . . . . . . . . . . . . . . . . . . . . . Reprogrammed . | . . . . . . . . . . . . . . . . . . . . . . Reused . | . . . . . . . . . . . . . . . . . . . . . . Traps Extracted . | . . . . . . . . . . . . . . . . . . . . . . Installed . | . . . . . . . . . . . . . . . . . . . . . . Triggered . | . . . . . . . . . . . . . . . . . . . . . . Machines | -11 -10 -10 -10 -9 -8 -8 -7 -7 -6 -6 -6 -6 -5 -5 -5 -5 -5 -4 -4 -3 -3 ---------- Run | Yrd Mat Min Exi Min Mat Gar Fac DSF Fac Was Fac Ext Fac Was Fac Gar Fac Fac DSF Res Gar Machines Disabled 8 | . . . . . 3 1 . . . . . . . . 1 1 1 . . . 1 Max in Single Turn 1 | . . . . . 1 1 . . . . . . . . . 1 . . . . 1 Garrison Relay 3 | . . . . . . 1 . . . . . . . . . 1 . . . . 1 Machines Repaired . | . . . . . . . . . . . . . . . . . . . . . . Machines Dismantled . | . . . . . . . . . . . . . . . . . . . . . . Machines Sabotaged . | . . . . . . . . . . . . . . . . . . . . . . Overloaded Fab Kills . | . . . . . . . . . . . . . . . . . . . . . . Hacking | -11 -10 -10 -10 -9 -8 -8 -7 -7 -6 -6 -6 -6 -5 -5 -5 -5 -5 -4 -4 -3 -3 --------- Run | Yrd Mat Min Exi Min Mat Gar Fac DSF Fac Was Fac Ext Fac Was Fac Gar Fac Fac DSF Res Gar Machines Accessed 61 | . 6 . 1 . 9 1 2 . 11 . 3 1 . . 10 2 4 5 . 6 . Terminals 40 | . 5 . . . 6 1 1 . 7 . 1 1 . . 6 2 3 3 . 4 . Fabricators 6 | . . . . . . . . . 2 . 1 . . . 2 . . . . 1 . Repair Stations 7 | . 1 . . . . . 1 . 2 . . . . . 1 . 1 1 . . . Recycling Units 2 | . . . . . . . . . . . 1 . . . . . . 1 . . . Scanalyzers 2 | . . . . . 2 . . . . . . . . . . . . . . . . Garrison Access 3 | . . . . . 1 . . . . . . . . . 1 . . . . 1 . Total Hacks 183 | . 24 . 1 . 23 2 7 . 41 . 11 3 . . 25 2 14 17 . 13 . Successful 118 | . 13 . 1 . 13 1 5 . 22 . 4 1 . . 19 2 10 15 . 12 . Failed 65 | . 11 . . . 10 1 2 . 19 . 7 2 . . 6 . 4 2 . 1 . Catastrophic 3 | . . . . . 1 . . . 1 . 1 . . . . . . . . . . Database Lockouts . | . . . . . . . . . . . . . . . . . . . . . . Manual 74 | . 19 . 1 . 10 . . . 10 . 4 3 . . 10 . 5 3 . 9 . Terminals 131 | . 22 . . . 15 2 3 . 28 . 7 3 . . 17 2 10 11 . 11 . Fabricators 15 | . . . . . . . . . 7 . 3 . . . 4 . . . . 1 . Repair Stations 22 | . 2 . . . . . 4 . 6 . . . . . 2 . 4 4 . . . Recycling Units 3 | . . . . . . . . . . . 1 . . . . . . 2 . . . Scanalyzers 7 | . . . . . 7 . . . . . . . . . . . . . . . . Garrison Access 4 | . . . . . 1 . . . . . . . . . 2 . . . . 1 . Terminal Hacks 45 | . 7 . 1 . 3 1 1 . 9 . . . . . 6 2 3 6 . 6 . Record 3 | . . . . . . . . . 2 . . . . . 1 . . . . . . Part Schematic 3 | . . . . . . . . . 1 . . . . . . . . 2 . . . Robot Analysis 5 | . 4 . . . 1 . . . . . . . . . . . . . . . . Prototype ID Bank 5 | . 1 . . . . . . . 2 . . . . . 1 . . 1 . . . Open DSF 4 | . . . . . . . 1 . 1 . . . . . 1 . . 1 . . . Level Access Points 2 | . . . . . . . . . . . . . . . . . 1 . . 1 . Branch Access Points 1 | . . . . . . . . . 1 . . . . . . . . . . . . Emergency Access Points 1 | . . . . . . . . . . . . . . . . 1 . . . . . Terminal Index 2 | . . . . . . . . . . . . . . . . . 1 . . 1 . Scanalyzer Index 1 | . . . . . . . . . . . . . . . . . . . . 1 . Garrison Index 1 | . . . . . . . . . . . . . . . . . . . . 1 . Locate Traps 7 | . 1 . . . 1 . . . 1 . . . . . 1 . 1 1 . 1 . Recall Investigation 2 | . . . . . 1 . . . . . . . . . 1 . . . . . . Recall Extermination 3 | . . . . . . . . . 1 . . . . . 1 . . . . 1 . Zone Layout 2 | . 1 . . . . . . . . . . . . . . . . 1 . . . Patrol Navigation 2 | . . . . . . 1 . . . . . . . . . 1 . . . . . Derelict Proto ID Bank 1 | . . . 1 . . . . . . . . . . . . . . . . . . Fabricator Hacks 11 | . . . . . . . . . 5 . 1 . . . 4 . . . . 1 . Network Status 1 | . . . . . . . . . . . . . . . . . . . . 1 . Load Schematic 6 | . . . . . . . . . 3 . 1 . . . 2 . . . . . . Build 4 | . . . . . . . . . 2 . . . . . 2 . . . . . . Repair Station Hacks 20 | . 2 . . . . . 4 . 4 . . . . . 2 . 4 4 . . . Scan Component 10 | . 1 . . . . . 2 . 2 . . . . . 1 . 2 2 . . . Repair 10 | . 1 . . . . . 2 . 2 . . . . . 1 . 2 2 . . . Recycling Unit Hacks 3 | . . . . . . . . . . . 1 . . . . . . 2 . . . Report Inventory 2 | . . . . . . . . . . . 1 . . . . . . 1 . . . Retrieve Components 1 | . . . . . . . . . . . . . . . . . . 1 . . . Scanalyzer 7 | . . . . . 7 . . . . . . . . . . . . . . . . Insert Component 4 | . . . . . 4 . . . . . . . . . . . . . . . . Analyze 3 | . . . . . 3 . . . . . . . . . . . . . . . . Garrison Access Hacks 4 | . . . . . 1 . . . . . . . . . 2 . . . . 1 . Unlock Access 3 | . . . . . 1 . . . . . . . . . 1 . . . . 1 . Coupler Status 1 | . . . . . . . . . . . . . . . 1 . . . . . . Unauthorized Hacks 28 | . 4 . . . 2 . . . 4 . 2 1 . . 5 . 3 3 . 4 . Terminals 28 | . 4 . . . 2 . . . 4 . 2 1 . . 5 . 3 3 . 4 . Botnet 20 | . 3 . . . 1 . . . 3 . 1 1 . . 4 . 2 2 . 3 . Operators 8 | . 1 . . . 1 . . . 1 . 1 . . . 1 . 1 1 . 1 . Fabricators . | . . . . . . . . . . . . . . . . . . . . . . Repair Stations . | . . . . . . . . . . . . . . . . . . . . . . Recycling Units . | . . . . . . . . . . . . . . . . . . . . . . Scanalyzers . | . . . . . . . . . . . . . . . . . . . . . . Garrison Access . | . . . . . . . . . . . . . . . . . . . . . . Data Cores Recovered 2 | . . . . . . . . . 1 . . . . . . . 1 . . . . Used 1 | . . . . . . . . . 1 . . . . . . . . . . . . Hacking Detections 48 | . 6 . . . 8 1 2 . 9 . 2 1 . . 6 1 4 4 . 4 . Full Trace Events 9 | . 1 . . . 2 . . . 2 . 1 . . . 2 . 1 . . . . Feedback Events 2 | . 1 . . . . . . . . . . . . . . . 1 . . . . Corruption 2 | . 1 . . . . . . . . . . . . . . . 1 . . . . Feedback Blocked 1 | . . . . . . . . . . . 1 . . . . . . . . . . Robot Schematics Acquired . | . . . . . . . . . . . . . . . . . . . . . . Robots Built . | . . . . . . . . . . . . . . . . . . . . . . Authchips . | . . . . . . . . . . . . . . . . . . . . . . Time . | . . . . . . . . . . . . . . . . . . . . . . Total Robot Build Rating . | . . . . . . . . . . . . . . . . . . . . . . Part Schematics Acquired 6 | . . . . . 3 . . . 1 . . . . . . . . 2 . . . Parts Built 5 | . . . . . . . . . 2 . . . . . 3 . . . . . . Authchips . | . . . . . . . . . . . . . . . . . . . . . . Time 305 | . . . . . . . . . 189 . . . . . 116 . . . . . . Total Part Build Rating 23 | . . . . . . . . . 6 . . . . . 17 . . . . . . Parts Repaired 10 | . 1 . . . . . 2 . 2 . . . . . 1 . 2 2 . . . Time 460 | . 26 . . . . . 76 . 76 . . . . . 25 . 112 145 . . . Parts Recycled . | . . . . . . . . . . . . . . . . . . . . . . Recycled Matter . | . . . . . . . . . . . . . . . . . . . . . . Retrieved Matter . | . . . . . . . . . . . . . . . . . . . . . . Retrieved Components 2 | . . . . . . . . . . . . . . . . . . 2 . . . Parts Scanalyzed 3 | . . . . . 3 . . . . . . . . . . . . . . . . Part Schematics Acquired 3 | . . . . . 3 . . . . . . . . . . . . . . . . Parts Damaged . | . . . . . . . . . . . . . . . . . . . . . . Bothacking | -11 -10 -10 -10 -9 -8 -8 -7 -7 -6 -6 -6 -6 -5 -5 -5 -5 -5 -4 -4 -3 -3 ------------ Run | Yrd Mat Min Exi Min Mat Gar Fac DSF Fac Was Fac Ext Fac Was Fac Gar Fac Fac DSF Res Gar Used RIF Installer 2 | . . . . . . 1 . . . . . . . . . 1 . . . . . Signal Jammer 1 | . . . . . . . . . . . . . . . . 1 . . . . . Robots Hacked 16 | . . . 4 . . . 1 . 1 . . 1 . . 2 . 2 . 1 2 2 Non-combat 10 | . . . 3 . . . 1 . 1 . . 1 . . 2 . . . . 2 . Combat 6 | . . . 1 . . . . . . . . . . . . . 2 . 1 . 2 Robot Hacks Applied 22 | . . . 4 . . . 2 . 2 . . 1 . . 4 . 2 . 1 4 2 parse_system 7 | . . . 4 . . . 1 . . . . 1 . . . . . . 1 . . no_distress 6 | . . . . . . . 1 . 1 . . . . . 2 . . . . 2 . find_fabricator 3 | . . . . . . . . . 1 . . . . . 1 . . . . 1 . find_dsf 2 | . . . . . . . . . . . . . . . 1 . . . . 1 . reboot_system 1 | . . . . . . . . . . . . . . . . . . . . . 1 streamctrl_high 1 | . . . . . . . . . . . . . . . . . 1 . . . . formatsys_high 2 | . . . . . . . . . . . . . . . . . 1 . . . 1 Relay Couplers Released 12 | . . . . . . 5 . . . . . . . . . 3 . . . . 4 Machine Destruction 12 | . . . . . . 5 . . . . . . . . . 3 . . . . 4 Attached 2 | . . . . . . . . . . . . . . . . . 1 . . . 1 Fabnet Peak Effective % . | . . . . . . . . . . . . . . . . . . . . . . Robots Rewired 1 | . . . . . . . . . . . . . . . . . . . . . 1 Allies Hacked . | . . . . . . . . . . . . . . . . . . . . . . Hacks Repelled . | . . . . . . . . . . . . . . . . . . . . . . Allies | -11 -10 -10 -10 -9 -8 -8 -7 -7 -6 -6 -6 -6 -5 -5 -5 -5 -5 -4 -4 -3 -3 -------- Run | Yrd Mat Min Exi Min Mat Gar Fac DSF Fac Was Fac Ext Fac Was Fac Gar Fac Fac DSF Res Gar Total Allies 27 | . . 4 . . . . . . . . . . . 19 . . 2 . . . 2 Largest Group 19 | . . 4 . . . . . . . . . . . 19 15 . 1 . . . 1 Highest-Rated Group 702 | . . 71 . . . . . . . . . . . 702 570 . 49 . . . 47 Highest-Rated Ally 50 | . . 31 . . . . . . . . . . . 50 46 . 49 . . . 47 Total Orders . | . . . . . . . . . . . . . . . . . . . . . . Ally Attacks 263 | . . 38 . . . . . . . . . . . 107 107 . 3 . . . 8 Total Damage 7349 | . . 416 . . . . . . . . . . . 4192 2426 . 79 . . . 236 Kills 31 | . . 6 . . . . . . . . . . . 7 16 . 1 . . . 1 Allies Corrupted . | . . . . . . . . . . . . . . . . . . . . . . Allies Melted 2 | . . . . . . . . . . . . . . . 2 . . . . . . Intel | -11 -10 -10 -10 -9 -8 -8 -7 -7 -6 -6 -6 -6 -5 -5 -5 -5 -5 -4 -4 -3 -3 ------- Run | Yrd Mat Min Exi Min Mat Gar Fac DSF Fac Was Fac Ext Fac Was Fac Gar Fac Fac DSF Res Gar Robot Analysis Total 4 | . 3 . . . 1 . . . . . . . . . . . . . . . . Derelict Logs Recovered 5 | . . 2 . 3 . . . . . . . . . . . . . . . . . Drone Launches . | . . . . . . . . . . . . . . . . . . . . . . Drone Recoveries . | . . . . . . . . . . . . . . . . . . . . . . Exploration | -11 -10 -10 -10 -9 -8 -8 -7 -7 -6 -6 -6 -6 -5 -5 -5 -5 -5 -4 -4 -3 -3 ------------- Run | Yrd Mat Min Exi Min Mat Gar Fac DSF Fac Was Fac Ext Fac Was Fac Gar Fac Fac DSF Res Gar Turns Passed 12795 | 141 2634 728 694 1035 2908 185 323 62 714 167 330 255 82 386 647 108 467 341 85 280 223 Spaces Moved 11231 | 102 1339 466 286 399 1381 262 363 65 1128 339 454 488 167 445 1177 241 717 341 121 591 359 Core 85 | 1 . . . . . . . . . . . 10 49 . . . . . . . 25 Treads 2694 | . 574 132 286 399 1303 . . . . . . . . . . . . . . . . Legs 3 | . . . . . . . . . . . . . . . . . . . . . 3 Wheels 1200 | 101 765 334 . . . . . . . . . . . . . . . . . . . Hover 3167 | . . . . . 78 262 363 65 1128 339 454 478 . . . . . . . . . Flight 4082 | . . . . . . . . . . . . . 118 445 1177 241 717 341 121 591 331 Fastest Speed 26 | 50 90 110 240 240 45 45 42 42 42 42 42 45 40 40 31 31 32 29 29 29 26 Average Speed 85 | 90 161 146 240 240 154 45 42 58 42 42 42 46 42 77 36 31 32 29 29 30 33 Slowest Speed 350 | 100 240 240 240 240 240 45 42 111 48 42 45 350 50 120 120 32 117 32 29 31 350 Overloaded Moves . | . . . . . . . . . . . . . . . . . . . . . . Propulsion Burnouts . | . . . . . . . . . . . . . . . . . . . . . . Robots Hopped 4 | . . . . . . . . . . . . . . . 2 . . . . . 2 Cave-ins Triggered . | . . . . . . . . . . . . . . . . . . . . . . Exploration Rate (%) 44 | 5 96 82 65 86 62 36 7 47 27 96 11 35 7 96 27 40 9 7 73 21 41 Regions Visited 21 Branch Regions 4 Pre-discovered Areas 1 | . . 1 . . . . . . . . . . . . . . . . . . . Known Exits Taken 7 | . . . . . 1 . 1 . . . 1 . . . 1 . 1 1 . 1 . Unknown Exits Taken 6 | 1 1 1 1 1 . . . . . . . 1 . . . . . . . . . Scrap Searched 3 | . . 1 . 2 . . . . . . . . . . . . . . . . . Spaces Dug 149 | . 3 1 . 2 35 2 6 . 25 2 18 . . . 22 . 12 8 . 11 2 Terrain Destroyed 338 | . 35 26 . 2 56 24 6 . 25 2 18 . . 68 22 . 12 8 1 31 2 Melee 127 | . 1 1 . 2 15 2 6 . 25 2 18 . . . 22 . 12 8 . 11 2 Projectile 29 | . 2 . . . 26 . . . . . . . . . . . . . 1 . . AOE 182 | . 32 25 . . 15 22 . . . . . . . 68 . . . . . 20 . Terrain Rammed . | . . . . . . . . . . . . . . . . . . . . . . Walls Destroyed . | . . . . . . . . . . . . . . . . . . . . . . Machines Disabled . | . . . . . . . . . . . . . . . . . . . . . . Actions | -11 -10 -10 -10 -9 -8 -8 -7 -7 -6 -6 -6 -6 -5 -5 -5 -5 -5 -4 -4 -3 -3 --------- Run | Yrd Mat Min Exi Min Mat Gar Fac DSF Fac Was Fac Ext Fac Was Fac Gar Fac Fac DSF Res Gar Total 13525 | 132 1666 493 293 471 1876 306 513 83 1299 357 556 512 175 472 1326 264 920 567 160 654 430 Wait 1200 | 2 171 7 . 61 219 12 124 . 84 . 67 13 . 4 60 17 162 174 . . 23 Move 11202 | 101 1338 465 285 398 1380 260 362 64 1128 338 453 487 167 444 1172 239 716 340 120 590 355 Hop 4 | . . . . . . . . . . . . . . . 2 . . . . . 2 Pick Up 124 | 10 25 1 1 3 31 . 4 1 12 1 . . . 3 15 1 2 4 5 4 1 Fast Attach 49 | 7 7 . . . . . 2 . 3 2 1 . 4 2 7 . 2 3 1 1 7 Attach 58 | . 4 . 2 . 16 . 3 . 5 . . 4 2 . 4 . 4 4 1 4 5 Detach 21 | . . . 1 . 1 . . . 4 . . 1 . 1 2 1 2 2 1 1 4 Swap 114 | 1 33 5 . 1 37 1 2 1 7 1 2 2 1 2 5 . 6 1 2 3 1 Drop 99 | 3 16 1 . 3 37 . 1 1 10 3 1 1 1 2 7 1 3 1 2 3 2 Fire 275 | 8 68 10 . . 119 9 . . 3 . . 3 . 14 . . 4 . 14 10 13 Melee 274 | . 4 4 4 5 36 8 15 3 43 7 24 . . . 52 5 19 8 . 20 17 Ram 4 | . . . . . . . . . . . 3 1 . . . . . . . . . Kick . | . . . . . . . . . . . . . . . . . . . . . . Crush . | . . . . . . . . . . . . . . . . . . . . . . Escape Stasis 96 | . . . . . . 16 . 13 . . 5 . . . . . . 30 14 18 . Rewire 5 | . . . . . . . . . . 5 . . . . . . . . . . . Trap . | . . . . . . . . . . . . . . . . . . . . . . Miscellaneous . | . . . . . . . . . . . . . . . . . . . . . . Route ------- -11/Scrapyard -10/Materials (discovered 5 exits: [*Mat x3] / [*Min x2]) -10/Mines (discovered 3 exits: [*Mat] / *Exi / [*Sub]) -10/Exiles (discovered 2 exits: [*Min x2]) -9/Mines -8/Materials (discovered 2 exits: *Fac / Gar) -8/Garrison -7/Factory (discovered 2 exits: [*Sto] / DSF) -7/DSF -6/Factory (discovered 4 exits: *Low x2 / *Ext x2) -6/Waste -6/Factory -6/Extension -5/Factory -5/Waste -5/Factory (discovered 2 exits: [*Upp] / Gar) -5/Garrison -5/Factory (discovered 5 exits: *Fac x4 / [*Upp]) -4/Factory -4/DSF -3/Research (discovered 4 exits: *Res x3 / Gar) -3/Garrison (discovered 1 exit: [*Res]) History --------- Turn | Location | Event 33 | -11/Scrapyard | Discovered new exit (range 16) 142 | -11/Scrapyard | Entered Materials 301 | -10/Materials | Build established: Mutant 593 | -10/Materials | Discovered new exit (range 6) 916 | -10/Materials | Discovered new exit (range 16) 973 | -10/Materials | Discovered new exit (range 14) 995 | -10/Materials | Core integrity fell below 50% 1388 | -10/Materials | Discovered new exit (range 15) 1558 | -10/Materials | Repaired Lgt. Treads 1925 | -10/Materials | Discovered new exit (range 9) 2776 | -10/Materials | Entered Mines 2800 | -10/Mines | Discovered new exit (range 8) 2818 | -10/Mines | Met a Derelict bent on vengeance 2888 | -10/Mines | Learned Materials emergency access door positions 2950 | -10/Mines | Assisted by bots powering up and referring to "LRC-V3" 3171 | -10/Mines | Received a Mining Laser from a helpful Derelict 3219 | -10/Mines | Assembled infested the area 3229 | -10/Mines | Learned location of Zion (-7) 3268 | -10/Mines | Core integrity fell below 20% 3306 | -10/Mines | Lost 4 allies 3430 | -10/Mines | Discovered new exit (range 3) 3487 | -10/Mines | Deemed a non-threat by the Exiles lab entrance 3490 | -10/Mines | Discovered new exit (range 5) 3504 | -10/Mines | Entered Exiles 3564 | -10/Exiles | Met 8R-AWN 3588 | -10/Exiles | Discovered new exit (range 14) 3712 | -10/Exiles | Met EX-HEX 3788 | -10/Exiles | Met EX-BIN 3819 | -10/Exiles | Aligned with FarCom system 3821 | -10/Exiles | Given EX-Vault access code 3883 | -10/Exiles | Opened EX-Vault 3900 | -10/Exiles | Found Skeleton Box 3944 | -10/Exiles | Warned to stay clear of 0b10 Research branches 4024 | -10/Exiles | Met EX-DEC 4176 | -10/Exiles | Discovered new exit (range 10) 4198 | -10/Exiles | Left Exiles lab with Skeleton Box 4198 | -10/Exiles | Entered Mines 4218 | -9/Mines | Learned Materials trap positions 4618 | -9/Mines | Received a Rocket Launcher from a helpful Derelict 4819 | -9/Mines | Learned Materials emergency access door positions 5085 | -9/Mines | Learned Materials stockpile data 5179 | -9/Mines | YI-UF0 nonchalantly dropped a Grenade Launcher on the ground 5214 | -9/Mines | Discovered new exit (range 9) 5233 | -9/Mines | Entered Materials 5233 | -8/Materials | Evolved 4 slots: Propulsion x2, Utility x2 5234 | -8/Materials | Loaded intel: 14 trap records 5472 | -8/Materials | Garrison activated, responded to threat 6676 | -8/Materials | Build established: Scavenger-Mutant 7296 | -8/Materials | Discovered new exit (range 5) 7649 | -8/Materials | Garrison activated, responded to threat 8140 | -8/Materials | Identified exit to Garrison 8141 | -8/Materials | Entered Garrison 8175 | -8/Garrison | Triggered checkpoint 8201 | -8/Garrison | Garrison Relay disabled 8207 | -8/Garrison | Triggered checkpoint 8222 | -8/Garrison | Installed Relay Interface Framework 8271 | -8/Garrison | Triggered checkpoint 8273 | -8/Garrison | Triggered checkpoint 8295 | -8/Garrison | Triggered checkpoint 8320 | -8/Garrison | Discovered new exit (range 9) 8326 | -8/Garrison | Entered Factory 8326 | -7/Factory | Evolved 2 slots: Propulsion x1, Utility x1 8509 | -7/Factory | Repaired Airjet 8548 | -7/Factory | Repaired Airjet 8577 | -7/Factory | Discovered new exit (range 5) 8629 | -7/Factory | Build established: Hacker-Mutant 8649 | -7/Factory | Identified exit to DSF 8649 | -7/Factory | Entered DSF 8695 | -7/DSF | Discovered new exit (range 11) 8707 | -7/DSF | Additional patrols routed to DSF 8711 | -7/DSF | Entered Factory 8711 | -6/Factory | Evolved 2 slots: Power x1, Utility x1 8745 | -6/Factory | Identified exit to Lower Caves 8745 | -6/Factory | Identified exit to Extension 8891 | -6/Factory | Remotely autohacked Sealed Blast Doors 9037 | -6/Factory | Fabricated Hacking Suite? 9066 | -6/Factory | Repaired Aerolev Unit 9070 | -6/Factory | Fabricated Imp. VTOL Module? 9294 | -6/Factory | Repaired Rocket Launcher 9425 | -6/Factory | Sucked down chute 9425 | -6/Factory | Entered Waste 9425 | -6/Waste | The area was eerily silent 9522 | -6/Waste | Discovered new exit (range 14) 9592 | -6/Waste | Entered Factory 9901 | -6/Factory | Discovered exit to Extension (range 10) 9922 | -6/Factory | Entered Extension 9948 | -6/Extension | Lost 4 parts (1n2u1w) 9994 | -6/Extension | Spotted B-75 Beast 10160 | -6/Extension | Spotted B-75 Beast 10172 | -6/Extension | Remotely autohacked Sealed Heavy Doors 10172 | -6/Extension | Core integrity fell below 50% 10176 | -6/Extension | Discovered new exit (range 3) 10177 | -6/Extension | Entered Factory 10177 | -5/Factory | Evolved 2 slots: Propulsion x1, Utility x1 10199 | -5/Factory | Lost 8 parts (3p4n1w) 10259 | -5/Factory | Sucked down chute 10259 | -5/Factory | Entered Waste 10263 | -5/Waste | Spotted C-40 Crusher 10271 | -5/Waste | Warlord forces began an assault 10303 | -5/Waste | Allies destroyed C-40 Crusher 10304 | -5/Waste | Spotted C-40 Crusher 10307 | -5/Waste | Spotted C-40 Crusher 10310 | -5/Waste | Allies destroyed C-40 Crusher 10315 | -5/Waste | Destroyed C-40 Crusher 10326 | -5/Waste | Spotted C-40 Crusher 10330 | -5/Waste | Spotted C-40 Crusher 10338 | -5/Waste | Allies destroyed C-40 Crusher 10339 | -5/Waste | Allies destroyed C-40 Crusher 10366 | -5/Waste | Spotted C-40 Crusher 10368 | -5/Waste | Lost 4 allies 10372 | -5/Waste | Allies destroyed C-40 Crusher 10384 | -5/Waste | Discovered new exit (range 12) 10631 | -5/Waste | Found Prototype Processor 10631 | -5/Waste | Identified Exp. Melee Analysis Suite 10645 | -5/Waste | Entered Factory 10645 | -5/Factory | Accompanied by 15 allies 10902 | -5/Factory | Repaired Imp. Reaction Control System 11069 | -5/Factory | Fabricated Graphene Brace? 11079 | -5/Factory | Fabricated Imp. VTOL Module? 11284 | -5/Factory | Discovered new exit (range 6) 11292 | -5/Factory | Identified exit to Garrison 11292 | -5/Factory | Entered Garrison 11318 | -5/Garrison | Spotted B-75 Beast 11322 | -5/Garrison | Triggered checkpoint 11346 | -5/Garrison | Garrison Relay disabled 11379 | -5/Garrison | Discovered new exit (range 11) 11382 | -5/Garrison | Expanded RIF knowledge: Signal Jamming 11400 | -5/Garrison | Entered Factory 11489 | -5/Factory | Repaired Nuclear Pulse Array 11546 | -5/Factory | Repaired Nuclear Pulse Array 11646 | -5/Factory | Identified exit to Factory 11688 | -5/Factory | Discovered new exit (range 6) 11867 | -5/Factory | Entered another Factory area 11867 | -4/Factory | Evolved 2 slots: Utility x2 11939 | -4/Factory | Repaired Nuclear Pulse Array 12030 | -4/Factory | Repaired Cld. Nuclear Pulse Thruster 12183 | -4/Factory | Identified exit to DSF 12208 | -4/Factory | Entered DSF 12257 | -4/DSF | Additional patrols routed to DSF 12275 | -4/DSF | Discovered new exit (range 11) 12293 | -4/DSF | Entered Research 12293 | -3/Research | Evolved 2 slots: Utility x2 12319 | -3/Research | Build established: Wizard-Sprinter 12442 | -3/Research | Identified exit to Research 12479 | -3/Research | Spotted B-86 Titan 12531 | -3/Research | Found Prototype Launcher 12573 | -3/Research | Identified exit to Garrison 12573 | -3/Research | Entered Garrison 12641 | -3/Garrison | P-80 Master assimilated allied Plague 8a 12671 | -3/Garrison | Triggered checkpoint 12692 | -3/Garrison | Lost 3 parts (1p2u) 12692 | -3/Garrison | Discovered new exit (range 21) 12728 | -3/Garrison | Garrison Relay disabled 12749 | -3/Garrison | Triggered checkpoint 12777 | -3/Garrison | Core integrity fell below 50% 12783 | -3/Garrison | Core integrity fell below 20% 12796 | -3/Garrison | Destroyed by X-82 Rainmaker with Heavy Flak Cannon Last Messages --------------- 12781_ Slug penetrates C-35 Carver. 12781_ Hacking Suite destroyed. 12782_ P-80 Master resets P-80 Master, system corruption cleaned. 12783_ Acquired Enh. Quantum Rifle. 12785_ Penetrated by Slug. 12785_ Enh. Quantum Rifle destroyed. 12788_ Penetrated by Slug. 12789_ Acquired Centrium Leg. 12790_ Slug penetrates Reinforced Barrier. 12791_ Relay Coupler [Grunt] destroyed. 12791_ Slug penetrates Reinforced Barrier. 12791_ Acquired Centrium Leg. 12792_ The unstable cave ceiling collapses. 12793_ Slug penetrates Reinforced Barrier. 12794_ Slug penetrates Machine. 12794_ Acquired Centrium Leg. 12794_ P-80 Master resets G-67 Veteran, system corruption cleaned. 12795_ Slug penetrates Reinforced Barrier. 12796_ C-35 Carver knocked back. 12796_ Knocked back. Map ----- +----------------------------------------------------+ | ??????????????????????????????????????????# ## | | ??????????????????????????????????????????" | | ??????????????????????????????????????????" | | ??????????????????????????????????????????" | | ??????????????????????????????????????????" | | ?????############?????????????????????????# ## | | ?????# #?????????????????????????# ## | | ?????# * #?????????????????????????# | | ?????# #?????????????????????????# | | ?????# = #?????????????????????????# | | ?????# [! #?????????????????????????# ## | | ?????# * #?????????????????????????# #? | | ?????# * #?????????????????????????# #? | | ?????# #?????????????????????????# #? | | ?????#! #?????????????????????????# #? | | ?????# #???????????????????#?????# #? | | ?????######### ##?????????????????? #?????# #? | | ??????????#### ####################"####### #? | | ??????????# ]]! #? | | ??????????# /%!!! #? | | ??????????# **g!!! #? | | ??????????# < ###########+;#######* ###########? | | ??????????# #?????????# #?????# ###????????? | | ??????????#####???????### #?????# #????????? | | ????????????????????### hh +?????# + #??? | | ????????????????????#""@# #?????# #######??? | | ????????????????????#"* # #?????# ###????????? | | ????????????????????#"c # #???#?# #??????????? | | ????????????????????#" # #??"#?# #??????????? | | ????????????????????#" g# g#?!"#?# ###????????? | | ????????????????????#"xh# # ["#?# #"#????????? | | ????????????????????#"*p#p # *"#?# !"#????????? | | ????????????????????#"" Y ""#?# ! #????????? | | ????????????????????#""" Y ]"""#?# !!"#????????? | | ????????????????????#""""""""""#?# #"#????????? | | ????????????????????############?# ###????????? | | ???????????????????????###???????# #??????????? | | ????????????????????????????###### #??????????? | | ??????????????????????????### #??????????? | | ??????????????????????????# " #??????????? | | ?????????????????????????# =+ + #???????? | | ?????????????????????????## #]]]]]] # ##???????? | | ??????????????????????????#######++####????????? | | ???????????????????????????????????????????????? | | ???????????????????????????????????????????????? | | ???????????????????????????????????????????????? | | ???????????????????????????????????????????????? | | ???????????????????????????????????????????????? | | ???????????????????????????????????????????????? | | ???????????????????????????????????????????????? | +----------------------------------------------------+ Best States ------------- Heat Dissipation 53 Energy Generation 25 Energy Capacity 265 Matter Stores 300 Matter Capacity 300 Sight Range 22 Terrain Scan Density 10 ECM Strength 1 Jamming Range 12 Cloak Strength 2 Corruption Block 15 Armor Coverage 450 Melee Speed Boost 20 Phase Shifting 10 Evasion (%) 72 Melee Accuracy 8 Recoil Reduction 4 Salvage Targeting 1 Offensive Hacking 56 Defensive Hacking 20 Relay Coupler Types 1 Relay Coupler Value 19 Trap Extractor Capacity 4 Item Schematics ----------------- Hacking Suite | -8/Materials | Scanalyzed Imp. Datajack | -8/Materials | Scanalyzed Imp. VTOL Module | -8/Materials | Scanalyzed Graphene Brace | -6/Factory | Hacked Lgt. Antimatter Reactor | -4/Factory | Hacked Lgt. Particle Reactor | -4/Factory | Hacked Robot Schematics ------------------ None Fabricated ------------ Hacking Suite | x1 | -6/Factory Imp. VTOL Module | x1 | -6/Factory Graphene Brace | x2 | -5/Factory Imp. VTOL Module | x1 | -5/Factory Alien Tech Used ----------------- None Achievements -------------- Assimilation Complete Below Factory Defaults Short-term Sacrifices Challenges ------------ None Game ------ Seed RingBurstScanner Manual? 0 Play Time 03:15:03 Cumulative 69.0 hours Start 2025.05.03 @ 11:29:46 End 2025.05.04 @ 15:38:43 Sessions 6 Manual Loads 0 Difficulty Rogue Special Mode None Game No. 46 Rogue 42 Adventurer 4 Explorer 0 Win Type - Total 2 Types 1/0/0/1/0/0/0/0/0 Lore% 30 Gallery% 37 Achievement% 34 Wizard Run 0 Options --------- Layout 0 ASCII 0 Keyboard 1 Movement Vi Keybinds 0 Fullscreen 1 Font 24/Crisp Map View 76x50 Zoom Use 0% Tactical HUD 1 Map Filters NONE Filters NONE Steam 1 RUN: 4beceb85-85c2-49b5-90f5-f5d16d5f99e6